bitfinex/quotes_ETHUSD_20260228
["timestamp","ask_amount","ask_price","bid_price","bid_amount"]
[1772298103188,0.71675006,1905.7,1905.4,0.001]
[1772298103394,2.15453968,1905.6,1905.4,0.001]
[1772298106721,4.20623318,1906.1,1905.4,2.17777109]
[1772298106912,2.17587468,1906.0,1905.4,2.17777109]
[1772298108532,2.17587468,1905.9,1905.4,2.17777109]
[1772298109715,2.17587468,1905.9,1905.4,3.48982695]
[1772298110117,2.17587468,1905.9,1905.4,2.17777109]
[1772298113135,2.17587468,1905.8,1905.4,2.17777109]
[1772298113637,2.17587468,1905.6,1905.4,0.001]
[1772298114042,2.17587468,1905.6,1905.2,7.25632832]
[1772298114531,2.17587468,1905.6,1905.3,2.17677109]
[1772298114926,2.17587468,1905.6,1905.5,0.001]
[1772298120441,3.48769953,1905.8,1905.5,0.001]
[1772298120748,2.17587468,1905.7,1905.5,0.001]
[1772298124864,3.487734,1905.7,1905.5,0.001]
[1772298125951,2.17587468,1905.6,1905.4,0.97964832]
[1772298126468,2.17587468,1905.7,1905.4,3.15641941]
[1772298127860,0.002,1905.6,1905.4,3.15641941]
[1772298128057,0.002,1905.6,1905.5,2.17677109]
[1772298130047,0.002,1905.6,1905.5,3.48876269]
[1772298130242,0.002,1905.7,1905.6,2.17677109]
[1772298131266,0.002,1905.7,1905.5,2.17677109]
[1772298131548,0.002,1905.9,1905.5,3.15913189]
[1772298131775,0.002,1905.8,1905.6,2.17677109]
[1772298134772,0.002,1905.8,1905.5,3.15913189]
[1772298135066,2.17787468,1905.8,1905.5,3.15913189]
[1772298136244,2.17587468,1905.8,1905.5,3.15913189]
[1772298136571,0.002,1905.7,1905.5,3.15913189]
[1772298137053,0.002,1905.7,1905.6,2.11586921]
[1772298138344,0.002,1905.7,1905.5,3.09823001]
[1772298138545,2.08962738,1905.8,1905.5,3.09823001]
[1772298138775,0.002,1905.7,1905.5,3.09823001]
[1772298140298,0.002,1905.6,1905.5,3.09823001]
[1772298140648,0.002,1905.6,1905.5,0.9823608]
[1772298141348,2.09162738,1905.6,1905.5,0.9823608]
[1772298143286,2.09362738,1905.6,1905.5,0.9823608]
[1772298143448,2.09362738,1905.6,1905.4,0.97964832]
[1772298143647,1.9000342,1905.5,1905.4,0.97964832]
[1772298145627,0.002,1905.6,1905.4,3.09551753]
[1772298145832,0.004,1905.6,1905.5,2.11586921]
[1772298146125,0.002,1905.6,1905.5,2.11586921]
[1772298151118,0.002,1905.6,1905.4,0.97964832]
[1772298151318,1.91131284,1905.6,1905.4,0.97964832]
[1772298152314,1.91131284,1905.6,1905.5,0.001]
[1772298153051,1.91331284,1905.6,1905.4,0.97964832]
[1772298153251,1.90601478,1905.5,1905.3,0.001]
[1772298153428,1.90801477,1905.5,1905.3,0.001]
[1772298153628,0.00199999,1905.4,1905.3,0.001]
[1772298156250,1.93019493,1905.4,1905.3,0.001]
[1772298156418,0.00199999,1905.4,1905.3,0.001]
[1772298156619,0.002,1905.6,1905.3,2.11686921]
[1772298156924,0.00199999,1905.5,1905.3,2.11686921]
[1772298158255,0.002,1905.6,1905.5,2.11586921]
[1772298158554,0.00399999,1905.6,1905.5,2.11586921]
[1772298160352,0.00399999,1905.6,1905.4,2.021]
[1772298160556,0.00399999,1905.6,1905.4,4.13686921]
[1772298164326,0.00399999,1905.6,1905.5,0.001]
[1772298165157,1.90600079,1905.9,1905.6,2.26269824]
[1772298165662,0.002,1905.8,1905.6,2.26269824]
[1772298171362,1.89751435,1905.8,1905.5,3.11660557]
[1772298171754,1.89751435,1905.8,1905.5,0.94734087]
[1772298173367,1.89751435,1905.8,1905.5,3.11660557]
[1772298174765,1.88801016,1905.7,1905.5,0.94734087]
[1772298176939,0.002,1905.8,1905.5,3.11660557]
[1772298177132,1.88501096,1905.8,1905.5,3.11660557]
[1772298177336,1.88501096,1905.8,1905.6,0.001]
[1772298178063,0.002,1905.7,1905.6,0.001]
[1772298179568,0.002,1905.7,1905.6,2.1702647]
[1772298180675,0.002,1905.7,1905.6,0.001]
[1772298181569,0.002,1905.7,1905.6,2.1702647]
[1772298182770,1.86983571,1905.7,1905.6,0.001]
[1772298183968,1.86428836,1905.6,1905.2,2.63674653]
[1772298184155,0.71667572,1905.3,1904.9,2.1702647]
[1772298184340,1.86428836,1905.2,1904.9,2.1702647]
[1772298185461,1.86428836,1905.2,1904.9,0.001]
[1772298185668,3.40734167,1905.0,1904.9,0.001]
[1772298185876,2.09500572,1904.7,1904.3,2.1692647]
[1772298186081,0.71667572,1904.4,1903.7,0.71667572]
[1772298186264,2.81168144,1904.4,1903.9,2.1692647]
[1772298186863,3.75802231,1904.4,1903.9,2.1692647]
[1772298187853,0.94634087,1904.4,1904.0,2.1692647]
[1772298188056,2.26267572,1904.8,1904.2,2.1692647]
[1772298188057,3.40125913,1904.8,1904.2,2.1692647]
[1772298188258,0.94634087,1904.8,1904.4,2.1692647]
[1772298189086,2.80233442,1904.6,1904.2,2.1692647]
[1772298189375,2.08251252,1904.5,1904.0,4.2032647]
[1772298189780,2.08251252,1904.5,1904.1,2.1692647]
[1772298189951,0.94634087,1904.5,1904.2,2.1692647]
[1772298190573,0.94634087,1904.5,1904.2,2.1702647]
[1772298191875,0.94634087,1904.4,1904.2,0.001]
[1772298192060,3.0225618,1904.4,1904.2,0.001]
[1772298194382,0.94634087,1904.4,1904.2,2.1702647]
[1772298195182,3.37940311,1904.6,1904.2,2.1702647]
[1772298195381,0.94634087,1904.5,1904.2,2.1702647]
[1772298196266,3.37940669,1904.6,1904.2,2.1702647]
[1772298197070,1.31261518,1904.6,1904.2,2.1702647]
[1772298197758,5.25017486,1904.7,1904.2,2.1702647]
[1772298197759,7.30830122,1904.7,1904.2,2.1702647]
[1772298197959,0.94634087,1904.6,1904.2,2.1702647]
[1772298198573,4.31397949,1904.6,1904.2,2.1702647]
[1772298199776,2.05183312,1904.5,1904.2,2.1702647]
[1772298199990,2.05183312,1904.5,1904.2,3.27991046]
[1772298200173,2.99817399,1904.4,1904.2,1.11064576]
[1772298200773,4.31096769,1904.4,1904.2,1.11064576]
[1772298201699,4.31096769,1904.4,1904.0,4.28790603]
[1772298201700,2.99189703,1904.3,1904.0,2.035]
[1772298201898,2.99189703,1904.3,1904.0,4.28790603]
[1772298202067,0.94634087,1904.3,1904.0,4.28790603]
[1772298203901,2.25917347,1904.3,1904.0,4.28790603]
[1772298204404,4.33146698,1904.3,1904.0,4.28790603]
[1772298204617,4.33146698,1904.3,1904.2,0.001]
[1772298205096,2.22947412,1904.5,1904.2,0.001]
[1772298207298,3.54222354,1904.4,1904.2,0.001]
[1772298207488,2.22947412,1904.2,1904.0,0.001]
[1772298209709,2.22947412,1904.4,1904.0,0.001]
[1772298209870,0.002,1904.6,1904.2,2.25290603]
[1772298212208,0.002,1904.6,1904.0,3.76503267]
[1772298212209,2.23147412,1904.6,1904.0,3.76503267]
[1772298212378,2.23147412,1904.6,1904.0,5.07805788]
[1772298212887,2.23147412,1904.6,1904.1,2.25290603]
[1772298213876,3.588168,1904.5,1904.0,1.51212664]
[1772298214102,2.22947412,1904.4,1903.9,0.001]
[1772298214308,2.22947412,1904.2,1903.9,0.001]
[1772298217513,1.31295625,1904.1,1904.0,0.001]
[1772298217813,3.54243037,1904.1,1904.0,0.001]
[1772298218312,0.002,1904.6,1904.0,0.001]
[1772298218495,2.22947412,1904.4,1904.0,0.001]
[1772298219717,2.22947412,1904.2,1904.0,0.001]
[1772298219924,1.31281835,1904.3,1903.7,0.001]
[1772298219925,2.22947412,1904.1,1903.7,0.001]
[1772298222518,3.54249933,1904.0,1903.7,0.001]
[1772298224286,2.22947412,1903.9,1903.7,0.001]
[1772298224489,1.31316314,1903.8,1903.7,0.001]
[1772298224699,3.75642828,1903.8,1903.7,0.001]
[1772298226215,2.39655957,1904.1,1903.7,0.001]
[1772298226813,2.39655957,1903.9,1903.7,0.001]
[1772298229015,3.7097059,1903.9,1903.7,0.001]
[1772298229201,1.7065849,1903.9,1903.7,0.001]
[1772298229700,1.7065849,1903.9,1903.8,0.001]
[1772298229900,7.64853109,1904.1,1903.8,0.001]
[1772298230287,2.39655957,1904.0,1903.8,0.001]
[1772298231321,1.31309417,1903.9,1903.8,0.001]
[1772298233318,5.25166137,1904.2,1903.8,2.4178299]
[1772298234648,3.11459101,1904.1,1903.8,0.001]
[1772298234922,2.39655957,1904.0,1903.8,0.001]
[1772298236827,1.31309417,1903.9,1903.8,0.001]
[1772298241516,3.70965374,1903.9,1903.8,0.001]
[1772298242034,2.39655957,1903.8,1903.5,0.001]
[1772298242415,2.39655957,1904.4,1903.5,2.4178299]
[1772298242639,0.002,1904.5,1903.8,2.4168299]
[1772298242809,0.002,1904.5,1904.0,2.4168299]
[1772298243015,1.31468558,1904.5,1904.0,2.4168299]
[1772298243215,0.002,1904.5,1904.0,2.4168299]
[1772298243644,0.002,1904.5,1904.1,1.31295625]
[1772298243844,0.002,1904.5,1904.2,2.4168299]
[1772298244309,0.002,1904.6,1904.2,2.4168299]
[1772298245444,2.39655957,1904.5,1904.0,2.4168299]
[1772298245634,1.31274942,1904.4,1904.0,3.72985025]
[1772298245839,1.31274942,1904.4,1904.1,2.4168299]
[1772298249027,0.002,1904.6,1904.2,2.4168299]
[1772298251746,0.002,1904.6,1904.3,2.4168299]
[1772298256062,0.002,1904.5,1904.3,2.4168299]
[1772298257471,2.37174486,1904.5,1904.1,2.3728132]
[1772298258554,3.68442596,1904.5,1904.1,3.68573517]
[1772298258862,0.002,1904.5,1904.2,2.3728132]
[1772298260863,0.002,1904.5,1904.1,3.6857259]
[1772298261069,0.002,1904.5,1904.2,2.3728132]
[1772298261867,0.002,1904.6,1904.3,2.3728132]
[1772298267474,0.002,1904.6,1904.3,3.68563139]
[1772298267668,0.002,1904.6,1904.4,2.3728132]
[1772298267975,0.002,1904.6,1904.4,2.3738132]
[1772298268148,0.002,1904.5,1904.4,2.3738132]
[1772298269663,0.002,1904.5,1904.4,0.001]
[1772298269972,2.37174486,1904.5,1904.1,2.3738132]
[1772298270446,0.002,1904.5,1904.2,2.3728132]
[1772298270749,0.002,1904.5,1904.4,2.3728132]
[1772298272660,0.002,1904.5,1904.4,3.68556262]
[1772298279475,0.002,1904.5,1904.4,2.3728132]
[1772298280885,0.002,1904.5,1904.4,3.68556262]
[1772298281887,0.002,1904.5,1904.4,3.68656262]
[1772298286665,0.002,1904.5,1904.4,0.001]
[1772298289363,2.32967241,1904.5,1904.4,0.001]
[1772298291997,3.6423529,1904.5,1904.4,0.001]
[1772298292513,2.32967241,1904.5,1904.4,0.001]
[1772298297101,3.6423529,1904.5,1904.4,0.001]
[1772298297276,2.32767241,1904.4,1904.3,0.001]
[1772298298201,3.64049076,1904.3,1904.1,0.001]
[1772298298493,2.32767241,1904.2,1904.1,0.001]
[1772298299473,0.002,1904.5,1904.2,2.21673517]
[1772298299679,1.314684,1904.5,1904.2,2.21673517]
[1772298301673,3.64235641,1904.5,1904.2,2.21673517]
[1772298302801,1.314684,1904.5,1904.1,0.001]
[1772298302980,2.32767241,1904.3,1904.1,0.001]
[1772298305417,3.64053948,1904.3,1904.1,0.001]
[1772298305914,2.32767241,1904.1,1903.6,2.11873517]
[1772298306282,2.32767241,1904.1,1903.4,5.58513419]
[1772298306515,2.32767241,1904.1,1903.5,2.21673517]
[1772298306700,2.32767241,1904.0,1903.5,2.21673517]
[1772298306900,2.32767241,1903.9,1903.4,2.21673517]
[1772298307285,3.64090453,1903.7,1903.4,2.21673517]
[1772298307989,2.32767241,1904.1,1903.7,2.21673517]
[1772298308422,1.31281835,1904.3,1903.9,2.21673517]
[1772298308719,3.64246985,1904.4,1904.1,2.21673517]
[1772298308895,1.31479744,1904.4,1904.1,2.21673517]
[1772298311422,0.002,1904.4,1904.2,2.21673517]
[1772298312089,0.002,1904.7,1904.3,2.21673517]
[1772298312420,0.002,1904.7,1904.4,2.21673517]
[1772298312920,0.002,1904.7,1904.2,2.21673517]
[1772298312921,3.6422177,1904.7,1904.2,2.21673517]
[1772298313320,2.32967241,1904.7,1904.2,2.21673517]
[1772298313737,0.002,1904.7,1904.3,1.31281835]
[1772298314035,0.002,1904.7,1904.4,2.21673517]
[1772298315942,2.32967241,1904.7,1904.4,2.21673517]
[1772298316404,2.32967241,1904.7,1904.2,2.38764923]
[1772298316730,0.002,1904.7,1904.2,2.38764923]
[1772298317937,0.002,1904.7,1904.5,2.38764923]
[1772298318808,0.002,1904.6,1904.5,2.38764923]
[1772298320822,0.002,1904.6,1904.5,3.70032972]
[1772298321211,0.002,1904.6,1904.5,2.38764923]
[1772298323343,0.002,1904.6,1904.4,2.38764923]
[1772298325041,0.002,1904.6,1904.5,2.38764923]
[1772298325738,0.002,1904.6,1904.4,2.065]
[1772298326627,0.002,1904.6,1904.4,4.45264923]
[1772298328455,0.002,1904.6,1904.4,5.76539826]
[1772298329355,0.002,1904.6,1904.4,6.48262972]
[1772298336863,0.002,1904.6,1904.4,6.48262847]
[1772298337032,0.002,1904.6,1904.4,4.45264923]
[1772298337346,2.25156863,1904.6,1904.3,2.084]
[1772298337547,2.25156863,1904.6,1904.3,0.001]
[1772298338254,0.002,1904.6,1904.4,2.38764923]
[1772298338460,2.25156863,1904.6,1904.3,3.10588069]
[1772298338850,3.56423921,1904.6,1904.3,2.38864923]
[1772298342939,3.56423921,1904.6,1904.4,0.001]
[1772298343261,0.002,1904.5,1904.4,0.001]
[1772298343567,2.25156863,1904.5,1904.4,0.001]
[1772298344063,2.25156863,1904.5,1904.2,0.001]
[1772298344241,2.21041469,1904.4,1904.2,0.001]
[1772298347474,1.31474674,1904.5,1904.2,2.4116605]
[1772298347672,0.002,1904.5,1904.2,2.4116605]
[1772298347877,1.31468525,1904.5,1904.2,2.4116605]
[1772298350673,0.002,1904.7,1904.5,2.4106605]
[1772298352689,0.002,1904.7,1904.5,1.31267842]
[1772298352887,0.002,1904.8,1904.7,2.4106605]
[1772298353088,5.24855958,1905.3,1904.5,3.40067842]
[1772298353089,7.51193048,1905.5,1904.6,2.4106605]
[1772298353387,2.2637579,1905.5,1905.1,2.4106605]
[1772298353588,1.31392275,1905.6,1905.1,2.4106605]
[1772298353959,1.31392275,1905.6,1905.2,2.4106605]
[1772298354161,3.57768065,1905.6,1905.2,2.4106605]
[1772298357196,2.2637579,1905.5,1905.2,2.4106605]
[1772298357886,2.2637579,1905.5,1905.1,2.4106605]
[1772298358570,2.2637579,1905.3,1905.0,3.6076605]
[1772298360906,3.57592703,1905.3,1905.0,3.6076605]
[1772298361071,2.2637579,1905.1,1904.8,2.4106605]
[1772298361266,2.2637579,1905.2,1904.9,2.4106605]
[1772298361490,1.31210462,1905.4,1904.9,2.4106605]
[1772298361796,0.002,1905.6,1905.3,2.4106605]
[1772298361967,1.31392974,1905.6,1905.3,2.4106605]
[1772298362698,1.3139339,1905.6,1905.3,2.4106605]
[1772298364198,0.002,1905.6,1905.3,2.4106605]
[1772298364396,0.002,1905.6,1905.4,2.4106605]
[1772298364972,0.002,1905.7,1905.5,2.4106605]
[1772298365871,1.31385399,1905.7,1905.5,2.4106605]
[1772298366999,0.002,1905.7,1905.5,2.4106605]
[1772298368071,1.31366917,1906.0,1905.4,1.31305674]
[1772298368272,3.57741022,1906.0,1905.6,2.4106605]
[1772298368491,2.2637579,1905.9,1905.6,2.4106605]
[1772298369212,3.57547932,1905.9,1905.6,2.4106605]
[1772298371212,3.57547932,1905.9,1905.5,4.4986605]
[1772298371213,2.2637579,1905.8,1905.5,4.4986605]
[1772298372088,3.57547932,1905.9,1905.6,2.4106605]
[1772298372673,1.31172142,1905.9,1905.6,2.4106605]
[1772298373310,5.24859203,1906.0,1905.6,2.4106605]
[1772298374607,7.51234993,1906.0,1905.6,2.4106605]
[1772298374906,7.51234993,1906.0,1905.6,3.1006605]
[1772298375096,7.51234993,1906.0,1905.6,0.69]
[1772298375296,7.51234993,1906.0,1905.7,2.4106605]
[1772298375804,2.2637579,1905.9,1905.6,3.1006605]
[1772298376003,2.2637579,1905.9,1905.6,0.69]
[1772298376305,5.24859203,1906.0,1905.7,2.4106605]
[1772298377781,2.37631094,1905.9,1905.6,0.69]
[1772298377998,2.37631094,1905.9,1905.6,2.18834692]
[1772298378704,5.24859203,1906.0,1905.6,2.18834692]
[1772298379788,1.31364742,1906.0,1905.6,2.18834692]
[1772298379991,3.68995836,1906.0,1905.6,2.18834692]
[1772298380915,3.68995836,1906.0,1905.4,2.87934692]
[1772298380916,2.37631094,1905.9,1905.4,2.87934692]
[1772298381204,2.37631094,1905.9,1905.3,2.18934692]
[1772298381610,2.37631094,1905.7,1905.3,2.18934692]
[1772298381811,2.37631094,1905.7,1905.4,0.001]
[1772298383986,3.68823369,1905.6,1905.4,0.001]
[1772298384696,2.37631094,1905.5,1905.4,0.001]
[1772298387322,2.37631094,1905.7,1905.4,0.001]
[1772298389206,2.37631094,1905.6,1905.4,0.001]
[1772298389937,1.3119916,1905.5,1905.4,0.001]
[1772298390735,2.37631094,1905.6,1905.4,0.001]
[1772298390940,3.68820675,1905.7,1905.4,2.18934692]
[1772298391230,1.31358987,1906.1,1905.6,2.18834692]
[1772298391435,1.31358987,1906.1,1905.7,2.18834692]
[1772298391604,3.68990081,1906.1,1905.7,2.18834692]
[1772298392310,2.37631094,1906.0,1905.7,2.18834692]
[1772298392511,2.388868,1906.1,1905.4,2.18934692]
[1772298392512,2.37631094,1905.8,1905.4,2.18934692]
[1772298392931,2.37631094,1905.8,1905.4,3.50140138]
[1772298393944,2.37631094,1905.8,1905.4,0.001]
[1772298394140,2.37631094,1905.6,1905.4,0.001]
[1772298395107,2.37631094,1905.6,1905.5,0.001]
[1772298395608,3.68823369,1905.6,1905.5,0.001]
[1772298396548,3.68809601,1905.8,1905.5,0.001]
[1772298396702,2.37631094,1905.7,1905.5,0.001]
[1772298397410,2.37631094,1905.6,1905.5,0.001]
[1772298397937,2.37631094,1905.6,1905.3,0.001]
[1772298398618,1.3119916,1905.5,1905.3,0.001]
[1772298399911,3.68823897,1905.6,1905.3,2.18934692]
[1772298400425,2.37631094,1905.5,1905.3,0.001]
[1772298400631,2.37631094,1905.4,1905.3,0.001]
[1772298401719,2.37631094,1905.4,1905.2,2.084]
[1772298401925,2.37631094,1905.2,1905.1,0.001]
[1772298402312,2.37631094,1905.2,1904.7,2.084]
[1772298402651,3.68857801,1905.1,1904.7,4.27234692]
[1772298402811,3.68857801,1905.1,1904.7,5.58488636]
[1772298403247,2.37631094,1905.1,1904.7,5.58488636]
[1772298403545,1.31208683,1905.4,1904.9,2.18834692]
[1772298404022,3.68839777,1905.4,1904.9,2.18834692]
[1772298405719,3.68839777,1905.4,1905.0,2.41029851]
[1772298406536,1.31204389,1905.5,1905.0,2.41029851]
[1772298406939,2.34457958,1905.6,1905.0,2.41029851]
[1772298407113,3.65654978,1905.6,1905.0,2.41029851]
[1772298407308,2.34457958,1905.5,1905.0,2.41129851]
[1772298407510,2.34457958,1905.2,1905.0,0.001]
[1772298407707,2.34457958,1905.2,1904.7,7.33403558]
[1772298407708,3.65698443,1904.9,1904.7,0.001]
[1772298407931,2.34457958,1904.7,1904.3,0.001]
[1772298408134,1.07527813,1904.8,1904.3,2.34800185]
[1772298408135,3.25227813,1904.8,1904.3,2.34800185]
[1772298408441,5.59685771,1904.8,1904.3,2.34800185]
[1772298408935,2.34457958,1904.7,1904.3,2.34800185]
[1772298409634,2.34457958,1904.7,1904.3,0.001]
[1772298410248,3.65719115,1904.6,1904.3,0.001]
[1772298410427,2.34457958,1904.5,1904.3,0.001]
[1772298410617,2.34457958,1904.5,1904.2,0.001]
[1772298411915,2.34457958,1904.3,1904.1,0.001]
[1772298412114,2.34457958,1904.3,1904.0,0.001]
[1772298412315,3.65746688,1904.2,1904.0,0.001]
[1772298412510,2.34457958,1904.1,1903.5,2.34700185]
[1772298414216,7.4305492,1904.4,1902.9,2.34700185]
[1772298414217,1.31316314,1903.8,1902.9,2.34700185]
[1772298414459,5.83874272,1903.8,1902.9,2.34700185]
[1772298414621,2.34457958,1903.7,1902.9,2.34700185]
[1772298416344,3.65788069,1903.6,1903.1,2.34700185]
[1772298416847,2.34457958,1903.5,1902.8,2.34700185]
[1772298419426,2.34457958,1903.3,1903.0,0.001]
[1772298421228,2.34457958,1903.2,1902.9,0.001]
[1772298421440,2.34457958,1903.0,1902.7,0.001]
[1772298421641,2.34457958,1902.9,1902.7,0.001]
[1772298421965,2.34457958,1902.9,1901.9,11.38630997]
[1772298421966,2.34457958,1902.9,1901.9,5.36483822]
[1772298422173,7.20440842,1903.0,1901.9,5.36483822]
[1772298422174,2.34457958,1902.6,1902.0,0.001]
[1772298422327,2.34457958,1902.5,1902.0,0.001]
[1772298423122,2.34457958,1902.5,1902.1,0.001]
[1772298423341,2.34457958,1902.5,1902.0,0.001]
[1772298424046,1.31412952,1902.4,1902.0,0.001]
[1772298424244,3.6587091,1902.4,1902.0,0.001]
[1772298425031,1.31402465,1902.6,1902.2,2.34700185]
[1772298425430,1.31402465,1902.6,1902.0,2.34700185]
[1772298425636,5.25554099,1902.8,1902.2,2.34700185]
[1772298425938,7.60012057,1902.8,1902.2,2.34700185]
[1772298426162,2.34457958,1902.7,1902.0,1.31439065]
[1772298426364,2.34457958,1902.5,1902.0,0.001]
[1772298426797,7.366988,1902.4,1901.9,4.05041618]
[1772298427098,7.366988,1902.4,1901.9,4.05141618]
[1772298427387,7.366988,1902.4,1901.9,0.001]
[1772298428588,2.183,1902.6,1902.0,2.34800185]
[1772298428589,1.31399138,1902.6,1902.0,2.34800185]
[1772298428763,1.31399138,1902.6,1902.0,2.34700185]
[1772298429484,1.31385326,1902.8,1902.2,2.34700185]
[1772298429788,3.59484055,1902.7,1901.8,2.34800185]
[1772298430094,3.65843284,1902.8,1901.8,2.34800185]
[1772298430393,1.31385326,1902.8,1902.0,2.34700185]
[1772298430588,1.31379207,1902.9,1902.2,2.34700185]
[1772298431464,2.34457958,1902.5,1901.1,3.65378199]
[1772298431774,1.331,1902.5,1901.6,2.34700185]
[1772298431973,0.001,1902.4,1901.6,2.34700185]
[1772298432168,0.001,1902.6,1901.6,2.34700185]
[1772298432403,0.001,1902.6,1901.7,2.34700185]
[1772298432598,0.001,1902.6,1902.1,2.34700185]
[1772298433260,8.8002122,1902.9,1901.9,3.6625506]
[1772298433261,0.001,1902.5,1901.9,3.6625506]
[1772298433482,2.34457958,1902.6,1901.9,2.34810185]
[1772298433703,2.34557958,1902.6,1901.9,3.6625677]
[1772298434513,0.001,1902.5,1902.0,2.34700185]
[1772298434671,0.001,1902.7,1902.1,2.34700185]
[1772298435265,0.001,1902.7,1902.3,2.34700185]
[1772298435467,1.3755619,1903.3,1902.4,2.34700185]
[1772298435890,0.06199999,1903.3,1902.4,2.34700185]
[1772298436988,1.37551344,1903.3,1902.4,2.34700185]
[1772298437193,0.06199999,1903.3,1902.4,2.34700185]
[1772298438213,1.313491,1903.4,1902.6,2.20478222]
[1772298438713,3.68819111,1903.4,1902.6,2.20478222]
[1772298439206,2.37470011,1903.4,1902.6,2.20478222]
[1772298439497,3.68814719,1903.4,1902.6,2.20478222]
[1772298442278,2.37470011,1903.3,1902.6,5.25568928]
[1772298442477,2.37470011,1903.3,1902.6,2.20478222]
[1772298445604,2.37470011,1903.3,1902.7,3.51870454]
[1772298445904,2.37570011,1903.3,1902.7,3.51870454]
[1772298447603,3.68920953,1903.3,1902.7,3.51870454]
[1772298447786,2.37470011,1903.2,1902.7,1.31392232]
[1772298449679,2.37470011,1903.2,1902.6,5.25568928]
[1772298449982,2.37470011,1903.1,1902.6,5.25568928]
[1772298454114,2.37470011,1903.1,1902.6,7.4604715]
[1772298454297,2.37570011,1903.3,1902.7,2.20478222]
[1772298454497,2.37570011,1903.3,1902.8,1.31385326]
[1772298454799,2.37570011,1903.3,1902.8,3.51863548]
[1772298455004,2.37470011,1903.0,1902.5,3.51988484]
[1772298455502,2.37470011,1903.0,1902.5,2.20588222]
[1772298456804,2.37470011,1903.0,1902.2,0.0011]
[1772298456805,2.37470011,1902.5,1902.2,0.0011]
[1772298458913,1.31412952,1902.4,1902.3,0.001]
[1772298459203,1.31392232,1902.7,1902.3,2.20578222]
[1772298461327,2.174,1902.8,1902.3,3.51997621]
[1772298461530,3.68852478,1902.9,1902.4,2.20588222]
[1772298462180,1.31382467,1902.9,1902.4,2.20588222]
[1772298463089,0.002,1903.0,1902.5,2.20478222]
[1772298463277,1.31572243,1903.0,1902.5,2.20478222]
[1772298463478,2.37470011,1902.9,1902.3,2.20578222]
[1772298463683,2.37470011,1902.9,1902.5,0.0011]
[1772298464800,2.37470011,1902.9,1902.6,0.0011]
[1772298465001,2.37470011,1902.9,1902.4,0.0011]
[1772298465211,2.35599645,1902.7,1902.4,0.0011]
[1772298466600,2.35599645,1902.7,1902.3,0.001]
[1772298466806,2.35599645,1902.7,1902.3,0.0021]
[1772298468312,2.28166895,1902.5,1902.2,0.0011]
[1772298468511,1.31399138,1902.6,1901.9,2.25649112]
[1772298468512,5.8765095,1902.4,1901.9,2.25649112]
[1772298468720,2.28166895,1902.3,1901.9,0.0011]
[1772298469693,2.28166895,1902.1,1901.9,0.0011]
[1772298470216,2.28166895,1902.3,1901.9,0.0011]
[1772298470608,1.31426769,1902.2,1901.9,0.0011]
[1772298470918,7.53873971,1902.3,1901.9,2.25649112]
[1772298470919,3.49824922,1902.3,1901.9,2.25649112]
[1772298471121,1.31424922,1902.3,1901.9,2.25649112]
[1772298471295,1.31424922,1902.3,1902.1,0.001]
[1772298471492,5.25637861,1902.5,1902.1,2.25639112]
[1772298473218,1.31406044,1902.6,1902.1,2.25639112]
[1772298473624,3.59572939,1902.6,1902.1,2.25639112]
[1772298476902,1.31396446,1902.7,1902.2,2.25539112]
[1772298477308,1.31396446,1902.7,1902.3,3.56958972]
[1772298477517,1.31396446,1902.7,1902.3,2.25539112]
[1772298479505,3.59563341,1902.7,1902.3,2.25539112]
[1772298480507,3.59563341,1902.7,1902.1,2.25639112]
[1772298481124,3.59563341,1902.7,1902.1,3.57072767]
[1772298481426,3.59743452,1903.0,1902.4,2.25539112]
[1772298481727,2.28166895,1902.9,1902.4,2.25539112]
[1772298483501,0.001,1902.6,1902.4,2.25539112]
[1772298484411,0.001,1902.6,1902.4,3.56951546]
[1772298484727,0.001,1902.6,1902.4,2.25539112]
[1772298485730,0.001,1902.6,1902.3,0.0011]
[1772298486335,2.28266895,1902.6,1902.3,0.0011]
[1772298486633,2.28166895,1902.3,1902.0,0.0011]
[1772298486815,7.1906811,1902.6,1902.0,0.0011]
[1772298486816,2.28166895,1902.5,1902.0,0.0011]
[1772298488211,5.25651808,1902.5,1902.1,2.25749112]
[1772298489743,7.53818703,1902.5,1902.1,0.0021]
[1772298491136,1.31406044,1902.5,1902.2,2.25639112]
[1772298491453,0.001,1902.6,1902.2,2.25639112]
[1772298491748,0.001,1902.6,1902.4,2.25539112]
[1772298491947,0.002,1903.0,1902.4,2.25539112]
[1772298492155,1.31571585,1903.0,1902.6,2.25539112]
[1772298493145,0.002,1903.0,1902.6,2.25539112]
[1772298495525,0.002,1903.0,1902.7,2.25749112]
[1772298496147,0.001,1902.9,1902.7,2.25749112]
[1772298496445,0.001,1902.9,1902.7,2.25539112]
[1772298497666,0.001,1902.9,1902.8,2.29701483]
[1772298497863,0.002,1903.1,1902.8,2.29701483]
[1772298498158,0.002,1903.1,1902.9,0.001]
[1772298501266,0.002,1903.1,1902.9,2.29591483]
[1772298504560,0.002,1903.1,1902.4,2.29491483]
[1772298504561,7.34136439,1903.0,1902.4,2.29491483]
[1772298504762,2.30702423,1902.9,1902.4,2.29491483]
[1772298505636,5.03434016,1903.0,1902.5,2.29701483]
[1772298505839,7.34136439,1903.0,1902.5,2.29601483]
[1772298506357,1.31378422,1902.9,1902.5,2.29601483]
[1772298507860,3.62080845,1902.9,1902.6,0.001]
[1772298508666,2.30702423,1902.8,1902.6,0.001]
[1772298508867,2.30702423,1902.8,1902.5,0.0021]
[1772298509379,2.30702423,1902.8,1902.4,0.001]
[1772298510383,1.31392232,1902.7,1902.4,2.29591483]
[1772298513565,2.30702423,1902.7,1902.4,2.29591483]
[1772298513875,2.30702423,1902.7,1902.4,0.001]
[1772298515499,0.002,1902.9,1902.5,2.29491483]
[1772298515781,0.002,1903.1,1902.7,2.29491483]
[1772298516678,2.30902423,1903.1,1902.4,0.001]
[1772298516986,2.30902423,1903.1,1902.5,2.29491483]
[1772298519279,1.31371518,1903.0,1902.5,2.29491483]
[1772298520019,3.62073941,1903.0,1902.5,2.29491483]
[1772298520343,5.25686074,1903.1,1902.6,2.29491483]
[1772298520344,0.002,1903.1,1902.6,2.29491483]
[1772298521357,0.002,1903.1,1902.7,2.29491483]
[1772298522571,0.001,1902.9,1902.7,2.29491483]